[Event "Titled Tuesday Blitz June 27 Early 2023"]
[White "Fonseca Manrique, Enrique"]
[Black "Fromm, Marius"]
[WhiteFideId "5114330"]
[BlackFideId "12993190"]
[WhiteElo "2563"]
[BlackElo "2703"]
[Result "1-0"]
[Round "6"]
[TimeControl "180+2"]
[Date "2023.06.27"]
[WhiteClock "0:00:11"]
[BlackClock "0:00:03"]
[Board "66"]

1. e4 {[%clk 0:03:00]}  c5 {[%clk 0:02:59]} 2. Nf3 {[%clk 0:03:00]}  d6 {[%clk 0:03:00]} 3. d4 {[%clk 0:03:00]}  cxd4 {[%clk 0:03:01]} 4. Nxd4 {[%clk 0:03:01]}  Nf6 {[%clk 0:03:01]} 5. Nc3 {[%clk 0:03:02]}  a6 {[%clk 0:03:02]} 6. Bg5 {[%clk 0:03:02]}  e6 {[%clk 0:03:02]} 7. f4 {[%clk 0:03:02]}  Be7 {[%clk 0:03:03]} 8. Qf3 {[%clk 0:03:02]}  Qc7 {[%clk 0:03:04]} 9. O-O-O {[%clk 0:03:03]}  Nbd7 {[%clk 0:03:04]} 10. g4 {[%clk 0:03:03]}  b5 {[%clk 0:03:04]} 11. Bxf6 {[%clk 0:03:03]}  Nxf6 {[%clk 0:03:05]} 12. g5 {[%clk 0:03:03]}  Nd7 {[%clk 0:03:05]} 13. f5 {[%clk 0:03:03]}  O-O {[%clk 0:03:06]} 14. Rg1 {[%clk 0:02:53]}  b4 {[%clk 0:03:05]} 15. Nce2 {[%clk 0:02:53]}  e5 {[%clk 0:03:05]} 16. f6 {[%clk 0:02:48]}  exd4 {[%clk 0:03:05]} 17. fxe7 {[%clk 0:02:48]}  Re8 {[%clk 0:03:06]} 18. Nxd4 {[%clk 0:02:39]}  Ne5 {[%clk 0:03:06]} 19. Qb3 {[%clk 0:02:31]}  a5 {[%clk 0:03:00]} 20. h4 {[%clk 0:02:19]}  Rxe7 {[%clk 0:02:55]} 21. h5 {[%clk 0:02:17]}  Qc5 {[%clk 0:02:42]} 22. g6 {[%clk 0:01:56]}  Bg4 {[%clk 0:02:33]} 23. gxh7+ {[%clk 0:01:43]}  Kxh7 {[%clk 0:02:30]} 24. Qg3 {[%clk 0:01:28]}  f6 {[%clk 0:02:04]} 25. Rd2 {[%clk 0:01:18]}  a4 {[%clk 0:01:58]} 26. Kb1 {[%clk 0:01:02]}  b3 {[%clk 0:01:46]} 27. cxb3 {[%clk 0:00:59]}  axb3 {[%clk 0:01:42]} 28. Nxb3 {[%clk 0:00:53]}  Qb4 {[%clk 0:01:24]} 29. Rd4 {[%clk 0:00:47]}  Qb6 {[%clk 0:01:11]} 30. Bh3 {[%clk 0:00:39]}  Bxh3 {[%clk 0:00:40]} 31. Qxh3 {[%clk 0:00:37]}  Rea7 {[%clk 0:00:15]} 32. Qf5+ {[%clk 0:00:28]}  Kh8 {[%clk 0:00:15]} 33. h6 {[%clk 0:00:26]}  g6 {[%clk 0:00:16]} 34. Qxf6+ {[%clk 0:00:25]}  Kh7 {[%clk 0:00:16]} 35. Rc1 {[%clk 0:00:16]}  Rf7 {[%clk 0:00:10]} 36. Qe6 {[%clk 0:00:14]}  Qa7 {[%clk 0:00:08]} 37. a3 {[%clk 0:00:13]}  Rb8 {[%clk 0:00:08]} 38. Rxd6 {[%clk 0:00:12]}  Rfb7 {[%clk 0:00:05]} 39. Rc3 {[%clk 0:00:11]}  Nf7 {[%clk 0:00:03]} 40. Qxg6+ {[%clk 0:00:11]}  Kh8 {[%clk 0:00:03]} 41. Qg7# {[%clk 0:00:11]} 1-0


[Site "https://www.chess.com"]

[Event "Titled Tuesday Blitz June 27 Early 2023"]
[White "Petrosian, Karlen"]
[Black "NicolaiMaxime"]
[WhiteFideId "4176146"]
[WhiteElo "2701"]
[BlackElo "2559"]
[Result "0-1"]
[Round "6"]
[TimeControl "180+2"]
[Date "2023.06.27"]
[WhiteClock "0:00:34"]
[BlackClock "0:00:20"]
[Board "68"]

1. e4 {[%clk 0:02:58]}  c5 {[%clk 0:02:59]} 2. Be2 {[%clk 0:02:57]}  Nc6 {[%clk 0:02:58]} 3. f4 {[%clk 0:02:57]}  g6 {[%clk 0:02:58]} 4. Nf3 {[%clk 0:02:57]}  Bg7 {[%clk 0:02:59]} 5. O-O {[%clk 0:02:58]}  d5 {[%clk 0:02:58]} 6. d3 {[%clk 0:02:57]}  Bg4 {[%clk 0:02:57]} 7. c3 {[%clk 0:02:57]}  e6 {[%clk 0:02:55]} 8. Nbd2 {[%clk 0:02:55]}  Nge7 {[%clk 0:02:55]} 9. h3 {[%clk 0:02:53]}  Bxf3 {[%clk 0:02:55]} 10. Bxf3 {[%clk 0:02:52]}  O-O {[%clk 0:02:56]} 11. Qe2 {[%clk 0:02:51]}  Rb8 {[%clk 0:02:52]} 12. Qf2 {[%clk 0:02:43]}  d4 {[%clk 0:02:37]} 13. c4 {[%clk 0:02:39]}  e5 {[%clk 0:02:29]} 14. g3 {[%clk 0:02:33]}  Qc7 {[%clk 0:02:24]} 15. Bg2 {[%clk 0:02:28]}  f5 {[%clk 0:02:23]} 16. a3 {[%clk 0:02:26]}  Kh8 {[%clk 0:02:22]} 17. exf5 {[%clk 0:02:22]}  Nxf5 {[%clk 0:02:19]} 18. Ne4 {[%clk 0:02:20]}  Ne3 {[%clk 0:02:17]} 19. Bxe3 {[%clk 0:01:37]}  dxe3 {[%clk 0:02:18]} 20. Qxe3 {[%clk 0:01:38]}  exf4 {[%clk 0:02:17]} 21. Qd2 {[%clk 0:01:38]}  fxg3 {[%clk 0:01:59]} 22. Kh1 {[%clk 0:01:32]}  Nd4 {[%clk 0:01:50]} 23. Rxf8+ {[%clk 0:01:29]}  Rxf8 {[%clk 0:01:49]} 24. Rf1 {[%clk 0:01:27]}  Rxf1+ {[%clk 0:01:47]} 25. Bxf1 {[%clk 0:01:28]}  b6 {[%clk 0:01:24]} 26. Qg5 {[%clk 0:01:24]}  Nf5 {[%clk 0:01:22]} 27. b4 {[%clk 0:01:19]}  cxb4 {[%clk 0:01:14]} 28. axb4 {[%clk 0:01:20]}  a5 {[%clk 0:01:10]} 29. bxa5 {[%clk 0:01:12]}  bxa5 {[%clk 0:01:11]} 30. Qd2 {[%clk 0:01:11]}  Qb6 {[%clk 0:01:03]} 31. c5 {[%clk 0:00:57]}  Qb1 {[%clk 0:01:02]} 32. Kg2 {[%clk 0:00:45]}  Be5 {[%clk 0:00:44]} 33. Qg5 {[%clk 0:00:44]}  Qc2+ {[%clk 0:00:36]} 34. Kf3 {[%clk 0:00:43]}  Nd4+ {[%clk 0:00:23]} 35. Kg4 {[%clk 0:00:36]}  Qd1+ {[%clk 0:00:22]} 36. Kh4 {[%clk 0:00:34]}  Nf3+ {[%clk 0:00:20]} 0-1


[Site "https://www.chess.com"]

[Event "Titled Tuesday Blitz June 27 Early 2023"]
[White "Klekowski, Maciej"]
[Black "Rodchenkov, Sergey D."]
[WhiteFideId "1132717"]
[BlackFideId "4168712"]
[WhiteElo "2699"]
[BlackElo "2557"]
[Result "1-0"]
[Round "6"]
[TimeControl "180+2"]
[Date "2023.06.27"]
[WhiteClock "0:02:14"]
[BlackClock "0:00:00"]
[Board "69"]

1. e4 {[%clk 0:02:57]}  c5 {[%clk 0:02:59]} 2. Nf3 {[%clk 0:02:57]}  d6 {[%clk 0:03:00]} 3. Bc4 {[%clk 0:02:57]}  Nf6 {[%clk 0:02:59]} 4. d3 {[%clk 0:02:56]}  e6 {[%clk 0:02:58]} 5. O-O {[%clk 0:02:56]}  Be7 {[%clk 0:02:58]} 6. a4 {[%clk 0:02:54]}  O-O {[%clk 0:02:57]} 7. Re1 {[%clk 0:02:54]}  a6 {[%clk 0:02:52]} 8. Nc3 {[%clk 0:02:54]}  Nbd7 {[%clk 0:02:51]} 9. Bf4 {[%clk 0:02:54]}  b6 {[%clk 0:02:47]} 10. e5 {[%clk 0:02:52]}  dxe5 {[%clk 0:02:47]} 11. Nxe5 {[%clk 0:02:53]}  Bb7 {[%clk 0:02:46]} 12. Nxf7 {[%clk 0:02:51]}  Rxf7 {[%clk 0:02:36]} 13. Bxe6 {[%clk 0:02:51]}  Nf8 {[%clk 0:02:29]} 14. Bxf7+ {[%clk 0:02:50]}  Kxf7 {[%clk 0:02:30]} 15. Qe2 {[%clk 0:02:48]}  Qd7 {[%clk 0:02:13]} 16. Ne4 {[%clk 0:02:47]}  Nxe4 {[%clk 0:02:05]} 17. dxe4 {[%clk 0:02:48]}  Ne6 {[%clk 0:01:48]} 18. Be5 {[%clk 0:02:46]}  Kg8 {[%clk 0:01:40]} 19. Qg4 {[%clk 0:02:45]}  Re8 {[%clk 0:01:16]} 20. Bxg7 {[%clk 0:02:40]}  Nf8 {[%clk 0:01:01]} 21. Qg3 {[%clk 0:02:35]}  Ng6 {[%clk 0:00:57]} 22. Bc3 {[%clk 0:02:31]}  Bh4 {[%clk 0:00:56]} 23. Qe3 {[%clk 0:02:27]}  Rxe4 {[%clk 0:00:35]} 24. Qh6 {[%clk 0:02:26]}  Qf7 {[%clk 0:00:25]} 25. g3 {[%clk 0:02:25]}  Bf6 {[%clk 0:00:15]} 26. Rxe4 {[%clk 0:02:25]}  Bxe4 {[%clk 0:00:15]} 27. Re1 {[%clk 0:02:26]}  Bxc3 {[%clk 0:00:10]} 28. Rxe4 {[%clk 0:02:25]}  Bd4 {[%clk 0:00:09]} 29. Qd2 {[%clk 0:02:23]}  Kg7 {[%clk 0:00:08]} 30. c3 {[%clk 0:02:22]}  Bf6 {[%clk 0:00:04]} 31. Qe2 {[%clk 0:02:20]}  Qc7 {[%clk 0:00:02]} 32. Qxa6 {[%clk 0:02:19]}  Qd7 {[%clk 0:00:02]} 33. Qe2 {[%clk 0:02:16]}  h6 {[%clk 0:00:02]} 34. h4 {[%clk 0:02:16]}  Qd6 {[%clk 0:00:02]} 35. Re6 {[%clk 0:02:16]}  Qd7 {[%clk 0:00:02]} 36. Rxb6 {[%clk 0:02:14]}  Ne5 {[%clk 0:00:01]} 37. Qe4 {[%clk 0:02:14]}  Qe6 {[%clk 0:00:00]} 38. Rxe6 {[%clk 0:02:14]} 1-0


[Site "https://www.chess.com"]

[Event "Titled Tuesday Blitz June 27 Early 2023"]
[White "Arat, Ufuk Sezen"]
[Black "Mirzoev, Azer"]
[WhiteFideId "6309089"]
[BlackFideId "13400304"]
[WhiteElo "2554"]
[BlackElo "2695"]
[Result "1-0"]
[Round "6"]
[TimeControl "180+2"]
[Date "2023.06.27"]
[WhiteClock "0:00:31"]
[BlackClock "0:00:00"]
[Board "70"]

1. e4 {[%clk 0:03:00]}  c6 {[%clk 0:03:00]} 2. d4 {[%clk 0:03:01]}  d5 {[%clk 0:03:01]} 3. e5 {[%clk 0:03:01]}  Bf5 {[%clk 0:03:01]} 4. h4 {[%clk 0:03:02]}  Qb6 {[%clk 0:02:59]} 5. g4 {[%clk 0:03:00]}  Bd7 {[%clk 0:02:58]} 6. Nc3 {[%clk 0:02:59]}  h5 {[%clk 0:02:57]} 7. gxh5 {[%clk 0:02:57]}  Bf5 {[%clk 0:02:56]} 8. Bd3 {[%clk 0:02:53]}  Bxd3 {[%clk 0:02:09]} 9. Qxd3 {[%clk 0:02:54]}  e6 {[%clk 0:02:09]} 10. Nge2 {[%clk 0:02:51]}  Rxh5 {[%clk 0:02:03]} 11. Ng3 {[%clk 0:02:51]}  Rh8 {[%clk 0:02:02]} 12. Bg5 {[%clk 0:02:48]}  Nd7 {[%clk 0:01:59]} 13. O-O-O {[%clk 0:02:47]}  Ne7 {[%clk 0:01:56]} 14. Rhe1 {[%clk 0:02:36]}  a6 {[%clk 0:01:21]} 15. f4 {[%clk 0:02:36]}  c5 {[%clk 0:01:19]} 16. f5 {[%clk 0:02:34]}  cxd4 {[%clk 0:01:17]} 17. fxe6 {[%clk 0:02:31]}  fxe6 {[%clk 0:01:14]} 18. Nce2 {[%clk 0:02:25]}  Nc5 {[%clk 0:01:07]} 19. Qxd4 {[%clk 0:02:22]}  O-O-O {[%clk 0:01:02]} 20. Kb1 {[%clk 0:02:16]}  Rd7 {[%clk 0:00:59]} 21. Nf4 {[%clk 0:02:15]}  Nc6 {[%clk 0:00:55]} 22. Qf2 {[%clk 0:02:10]}  Rf7 {[%clk 0:00:53]} 23. Qg1 {[%clk 0:02:03]}  Na5 {[%clk 0:00:48]} 24. Ng6 {[%clk 0:01:57]}  Rg8 {[%clk 0:00:47]} 25. Rf1 {[%clk 0:01:50]}  Nc4 {[%clk 0:00:42]} 26. Qd4 {[%clk 0:01:47]}  Qc7 {[%clk 0:00:28]} 27. Rxf7 {[%clk 0:01:42]}  Qxf7 {[%clk 0:00:27]} 28. Nf4 {[%clk 0:01:43]}  Qc7 {[%clk 0:00:19]} 29. c3 {[%clk 0:01:40]}  Qb6 {[%clk 0:00:18]} 30. Nd3 {[%clk 0:01:36]}  Nxd3 {[%clk 0:00:15]} 31. Qxb6 {[%clk 0:01:29]}  Nxb6 {[%clk 0:00:16]} 32. Rxd3 {[%clk 0:01:30]}  Nc4 {[%clk 0:00:16]} 33. Bf4 {[%clk 0:01:25]}  Be7 {[%clk 0:00:15]} 34. h5 {[%clk 0:01:24]}  Rf8 {[%clk 0:00:15]} 35. Ne2 {[%clk 0:01:18]}  Rf5 {[%clk 0:00:15]} 36. Rg3 {[%clk 0:01:15]}  Rxh5 {[%clk 0:00:13]} 37. Rxg7 {[%clk 0:01:15]}  Bc5 {[%clk 0:00:12]} 38. Nd4 {[%clk 0:01:08]}  Bxd4 {[%clk 0:00:10]} 39. cxd4 {[%clk 0:01:09]}  Rh1+ {[%clk 0:00:10]} 40. Kc2 {[%clk 0:01:08]}  Rf1 {[%clk 0:00:10]} 41. Bc1 {[%clk 0:00:54]}  Rf2+ {[%clk 0:00:10]} 42. Kb1 {[%clk 0:00:52]}  Rf1 {[%clk 0:00:10]} 43. b3 {[%clk 0:00:48]}  Na3+ {[%clk 0:00:08]} 44. Kb2 {[%clk 0:00:49]}  Nb5 {[%clk 0:00:09]} 45. Be3 {[%clk 0:00:48]}  Rf3 {[%clk 0:00:08]} 46. a4 {[%clk 0:00:46]}  Na7 {[%clk 0:00:07]} 47. Bd2 {[%clk 0:00:45]}  Nc6 {[%clk 0:00:06]} 48. Bc3 {[%clk 0:00:42]}  Rf2+ {[%clk 0:00:06]} 49. Ka3 {[%clk 0:00:40]}  Rf3 {[%clk 0:00:06]} 50. Bb2 {[%clk 0:00:38]}  Na5 {[%clk 0:00:05]} 51. Rg8+ {[%clk 0:00:35]}  Kc7 {[%clk 0:00:05]} 52. Rg7+ {[%clk 0:00:35]}  Kc6 {[%clk 0:00:05]} 53. Re7 {[%clk 0:00:33]}  Rxb3+ {[%clk 0:00:02]} 54. Ka2 {[%clk 0:00:33]}  Re3 {[%clk 0:00:01]} 55. Rxe6+ {[%clk 0:00:33]}  Kc7 {[%clk 0:00:00]} 56. Rh6 {[%clk 0:00:31]} 1-0


[Site "https://www.chess.com"]

[Event "Titled Tuesday Blitz June 27 Early 2023"]
[White "slidingknight2775"]
[Black "Ajay Karthikeyan"]
[BlackFideId "35011685"]
[WhiteElo "2546"]
[BlackElo "2694"]
[Result "0-1"]
[Round "6"]
[TimeControl "180+2"]
[Date "2023.06.27"]
[WhiteClock "0:00:00"]
[BlackClock "0:00:12"]
[Board "71"]

1. d4 {[%clk 0:03:00]}  Nf6 {[%clk 0:02:54]} 2. Bg5 {[%clk 0:03:00]}  Ng8 {[%clk 0:02:51]} 3. Nc3 {[%clk 0:02:57]}  h6 {[%clk 0:02:47]} 4. Bf4 {[%clk 0:02:54]}  d6 {[%clk 0:02:47]} 5. e4 {[%clk 0:02:53]}  g6 {[%clk 0:02:48]} 6. Qd2 {[%clk 0:02:52]}  Bg7 {[%clk 0:02:48]} 7. h4 {[%clk 0:02:53]}  Nc6 {[%clk 0:02:47]} 8. Be3 {[%clk 0:02:50]}  e5 {[%clk 0:02:44]} 9. d5 {[%clk 0:02:50]}  Nce7 {[%clk 0:02:43]} 10. h5 {[%clk 0:02:46]}  g5 {[%clk 0:02:43]} 11. O-O-O {[%clk 0:02:42]}  f5 {[%clk 0:02:43]} 12. exf5 {[%clk 0:02:41]}  Bxf5 {[%clk 0:02:43]} 13. Bd3 {[%clk 0:02:41]}  Nf6 {[%clk 0:02:42]} 14. Nge2 {[%clk 0:02:40]}  a6 {[%clk 0:02:41]} 15. Ng3 {[%clk 0:02:39]}  Qd7 {[%clk 0:02:40]} 16. Bxf5 {[%clk 0:02:27]}  Nxf5 {[%clk 0:02:41]} 17. Nge4 {[%clk 0:02:26]}  Nxe4 {[%clk 0:02:33]} 18. Nxe4 {[%clk 0:02:27]}  Rf8 {[%clk 0:02:24]} 19. Kb1 {[%clk 0:02:21]}  b6 {[%clk 0:02:23]} 20. c3 {[%clk 0:02:08]}  O-O-O {[%clk 0:02:13]} 21. f3 {[%clk 0:02:01]}  g4 {[%clk 0:02:09]} 22. Rhf1 {[%clk 0:01:37]}  gxf3 {[%clk 0:02:07]} 23. Rxf3 {[%clk 0:01:38]}  Nxe3 {[%clk 0:02:04]} 24. Qxe3 {[%clk 0:01:37]}  Rxf3 {[%clk 0:02:02]} 25. Qxf3 {[%clk 0:01:36]}  Rf8 {[%clk 0:02:02]} 26. Qe2 {[%clk 0:01:34]}  Kb7 {[%clk 0:01:54]} 27. Rf1 {[%clk 0:01:32]}  Rf4 {[%clk 0:01:30]} 28. Rxf4 {[%clk 0:01:04]}  exf4 {[%clk 0:01:31]} 29. Qf3 {[%clk 0:01:01]}  Be5 {[%clk 0:01:29]} 30. b3 {[%clk 0:00:56]}  Qb5 {[%clk 0:01:22]} 31. Kc2 {[%clk 0:00:45]}  Qa5 {[%clk 0:01:09]} 32. a4 {[%clk 0:00:44]}  Qxd5 {[%clk 0:01:05]} 33. Nxd6+ {[%clk 0:00:43]}  Kc6 {[%clk 0:01:05]} 34. Nf7 {[%clk 0:00:32]}  Bg7 {[%clk 0:00:50]} 35. Nd8+ {[%clk 0:00:24]}  Kd6 {[%clk 0:00:50]} 36. Qxf4+ {[%clk 0:00:23]}  Kd7 {[%clk 0:00:42]} 37. Nf7 {[%clk 0:00:17]}  Qxg2+ {[%clk 0:00:36]} 38. Kb1 {[%clk 0:00:13]}  Bxc3 {[%clk 0:00:34]} 39. Ne5+ {[%clk 0:00:05]}  Ke6 {[%clk 0:00:33]} 40. Qc4+ {[%clk 0:00:04]}  Kxe5 {[%clk 0:00:31]} 41. Qxc3+ {[%clk 0:00:05]}  Kf5 {[%clk 0:00:27]} 42. Qxc7 {[%clk 0:00:05]}  Qg1+ {[%clk 0:00:17]} 43. Kb2 {[%clk 0:00:04]}  Qf2+ {[%clk 0:00:17]} 44. Kb1 {[%clk 0:00:04]}  Kg5 {[%clk 0:00:14]} 45. Qd8+ {[%clk 0:00:01]}  Kxh5 {[%clk 0:00:13]} 46. Qd5+ {[%clk 0:00:02]}  Kg4 {[%clk 0:00:11]} 47. Qe6+ {[%clk 0:00:03]}  Qf5+ {[%clk 0:00:12]} 48. Qxf5+ {[%clk 0:00:00]}  Kxf5 {[%clk 0:00:12]} 0-1


[Site "https://www.chess.com"]

[Event "Titled Tuesday Blitz June 27 Early 2023"]
[White "Mattheii"]
[Black "Veiga, Jose Francisco R P Neves"]
[BlackFideId "1930087"]
[WhiteElo "2523"]
[BlackElo "2684"]
[Result "1-0"]
[Round "6"]
[TimeControl "180+2"]
[Date "2023.06.27"]
[WhiteClock "0:00:38"]
[BlackClock "0:00:05"]
[Board "74"]

1. d4 {[%clk 0:03:00]}  e6 {[%clk 0:00:55]} 2. c4 {[%clk 0:02:58]}  b6 {[%clk 0:00:53]} 3. Nc3 {[%clk 0:02:36]}  Bb7 {[%clk 0:00:54]} 4. Qc2 {[%clk 0:02:28]}  Nf6 {[%clk 0:00:54]} 5. e4 {[%clk 0:02:25]}  Bb4 {[%clk 0:00:53]} 6. e5 {[%clk 0:02:25]}  Ne4 {[%clk 0:00:53]} 7. Nf3 {[%clk 0:02:25]}  O-O {[%clk 0:00:50]} 8. Bd3 {[%clk 0:02:24]}  d5 {[%clk 0:00:50]} 9. exd6 {[%clk 0:02:23]}  Nxd6 {[%clk 0:00:44]} 10. Bxh7+ {[%clk 0:02:18]}  Kh8 {[%clk 0:00:44]} 11. Bd3 {[%clk 0:02:16]}  Bxf3 {[%clk 0:00:42]} 12. gxf3 {[%clk 0:02:16]}  Qh4 {[%clk 0:00:42]} 13. Be3 {[%clk 0:02:14]}  Nc6 {[%clk 0:00:40]} 14. Be4 {[%clk 0:02:07]}  Nxc4 {[%clk 0:00:34]} 15. Qe2 {[%clk 0:01:29]}  N4a5 {[%clk 0:00:14]} 16. O-O-O {[%clk 0:01:21]}  Rad8 {[%clk 0:00:14]} 17. Rhg1 {[%clk 0:01:19]}  Bxc3 {[%clk 0:00:15]} 18. bxc3 {[%clk 0:01:19]}  Qh5 {[%clk 0:00:13]} 19. Rg5 {[%clk 0:01:15]}  Qh3 {[%clk 0:00:11]} 20. Rdg1 {[%clk 0:01:11]}  Rg8 {[%clk 0:00:11]} 21. Qb5 {[%clk 0:00:38]}  Ne7 {[%clk 0:00:05]} 22. Rh5+ {[%clk 0:00:38]} 1-0


[Site "https://www.chess.com"]

[Event "Titled Tuesday Blitz June 27 Early 2023"]
[White "Taspinar, Yanki"]
[Black "Ritvin, Stanislav"]
[WhiteFideId "34561188"]
[BlackFideId "2011751"]
[WhiteElo "2675"]
[BlackElo "2499"]
[Result "0-1"]
[Round "6"]
[TimeControl "180+2"]
[Date "2023.06.27"]
[WhiteClock "0:00:00"]
[BlackClock "0:00:13"]
[Board "75"]

1. Nf3 {[%clk 0:02:45]}  Nf6 {[%clk 0:02:59]} 2. g3 {[%clk 0:02:45]}  d5 {[%clk 0:02:58]} 3. Bg2 {[%clk 0:02:46]}  c6 {[%clk 0:02:59]} 4. d4 {[%clk 0:02:46]}  Bf5 {[%clk 0:02:58]} 5. O-O {[%clk 0:02:47]}  e6 {[%clk 0:02:58]} 6. b3 {[%clk 0:02:47]}  Nbd7 {[%clk 0:02:58]} 7. Bb2 {[%clk 0:02:48]}  h6 {[%clk 0:02:57]} 8. Nbd2 {[%clk 0:02:49]}  Ne4 {[%clk 0:02:57]} 9. c4 {[%clk 0:02:49]}  Be7 {[%clk 0:02:53]} 10. Nxe4 {[%clk 0:02:49]}  Bxe4 {[%clk 0:02:52]} 11. Nd2 {[%clk 0:02:48]}  Bxg2 {[%clk 0:02:52]} 12. Kxg2 {[%clk 0:02:49]}  O-O {[%clk 0:02:52]} 13. Qc2 {[%clk 0:02:48]}  Qc7 {[%clk 0:02:45]} 14. e4 {[%clk 0:02:45]}  dxe4 {[%clk 0:02:45]} 15. Nxe4 {[%clk 0:02:45]}  Nf6 {[%clk 0:02:45]} 16. Rad1 {[%clk 0:02:45]}  Rfd8 {[%clk 0:02:42]} 17. Rd2 {[%clk 0:02:45]}  Rd7 {[%clk 0:02:41]} 18. Rfd1 {[%clk 0:02:42]}  Nxe4 {[%clk 0:02:39]} 19. Qxe4 {[%clk 0:02:40]}  Bf6 {[%clk 0:02:40]} 20. h4 {[%clk 0:02:35]}  Rad8 {[%clk 0:02:39]} 21. Bc3 {[%clk 0:02:34]}  c5 {[%clk 0:02:32]} 22. Qe3 {[%clk 0:02:28]}  cxd4 {[%clk 0:02:24]} 23. Bxd4 {[%clk 0:02:28]}  Bxd4 {[%clk 0:02:25]} 24. Rxd4 {[%clk 0:02:28]}  Rxd4 {[%clk 0:02:26]} 25. Rxd4 {[%clk 0:02:28]}  Rxd4 {[%clk 0:02:26]} 26. Qxd4 {[%clk 0:02:29]}  a6 {[%clk 0:02:27]} 27. c5 {[%clk 0:02:25]}  h5 {[%clk 0:02:23]} 28. b4 {[%clk 0:02:23]}  g6 {[%clk 0:02:22]} 29. Qe4 {[%clk 0:02:18]}  Qd7 {[%clk 0:02:21]} 30. a4 {[%clk 0:02:16]}  Kf8 {[%clk 0:02:11]} 31. Qe5 {[%clk 0:02:11]}  Ke7 {[%clk 0:01:56]} 32. Qb8 {[%clk 0:02:09]}  Qd5+ {[%clk 0:01:48]} 33. Kh2 {[%clk 0:02:05]}  Qf3 {[%clk 0:01:44]} 34. Qd6+ {[%clk 0:02:05]}  Ke8 {[%clk 0:01:37]} 35. Kg1 {[%clk 0:02:03]}  Qe4 {[%clk 0:01:35]} 36. Qb6 {[%clk 0:01:41]}  Qe1+ {[%clk 0:01:32]} 37. Kg2 {[%clk 0:01:41]}  Qe4+ {[%clk 0:01:31]} 38. Kh2 {[%clk 0:01:40]}  Qf3 {[%clk 0:01:26]} 39. c6 {[%clk 0:01:00]}  Qxc6 {[%clk 0:01:24]} 40. Qa7 {[%clk 0:01:00]}  Ke7 {[%clk 0:01:18]} 41. a5 {[%clk 0:00:56]}  Kf6 {[%clk 0:01:15]} 42. Qd4+ {[%clk 0:00:56]}  e5 {[%clk 0:01:13]} 43. Qd8+ {[%clk 0:00:56]}  Kg7 {[%clk 0:01:13]} 44. Qe7 {[%clk 0:00:55]}  Qd5 {[%clk 0:01:09]} 45. Kg1 {[%clk 0:00:54]}  Qd1+ {[%clk 0:01:02]} 46. Kh2 {[%clk 0:00:53]}  Qd4 {[%clk 0:01:02]} 47. Kg2 {[%clk 0:00:52]}  e4 {[%clk 0:01:01]} 48. Kg1 {[%clk 0:00:46]}  Qd1+ {[%clk 0:01:01]} 49. Kh2 {[%clk 0:00:46]}  Qf3 {[%clk 0:01:00]} 50. Qe5+ {[%clk 0:00:45]}  Kh7 {[%clk 0:00:58]} 51. Qd4 {[%clk 0:00:42]}  Qd3 {[%clk 0:00:49]} 52. Qb6 {[%clk 0:00:37]}  Qd5 {[%clk 0:00:46]} 53. Kg1 {[%clk 0:00:35]}  Kg7 {[%clk 0:00:45]} 54. Qc7 {[%clk 0:00:32]}  Kf6 {[%clk 0:00:45]} 55. Qb6+ {[%clk 0:00:30]}  Ke5 {[%clk 0:00:45]} 56. Qc7+ {[%clk 0:00:29]}  Kd4 {[%clk 0:00:45]} 57. Qc2 {[%clk 0:00:25]}  Qc4 {[%clk 0:00:42]} 58. Qd2+ {[%clk 0:00:25]}  Qd3 {[%clk 0:00:42]} 59. Qf4 {[%clk 0:00:26]}  Qd1+ {[%clk 0:00:38]} 60. Kh2 {[%clk 0:00:26]}  Qf3 {[%clk 0:00:37]} 61. Qd2+ {[%clk 0:00:26]}  Kc4 {[%clk 0:00:36]} 62. Kg1 {[%clk 0:00:23]}  e3 {[%clk 0:00:34]} 63. Qc2+ {[%clk 0:00:23]}  Kxb4 {[%clk 0:00:34]} 64. Qb2+ {[%clk 0:00:24]}  Kxa5 {[%clk 0:00:34]} 65. Qc3+ {[%clk 0:00:23]}  Kb5 {[%clk 0:00:33]} 66. Qd3+ {[%clk 0:00:23]}  Kc5 {[%clk 0:00:32]} 67. Qc3+ {[%clk 0:00:23]}  Kd5 {[%clk 0:00:32]} 68. Qb3+ {[%clk 0:00:23]}  Ke5 {[%clk 0:00:30]} 69. Qc3+ {[%clk 0:00:23]}  Kf5 {[%clk 0:00:29]} 70. Qd3+ {[%clk 0:00:23]}  Kg4 {[%clk 0:00:27]} 71. Qd7+ {[%clk 0:00:19]}  f5 {[%clk 0:00:26]} 72. fxe3 {[%clk 0:00:10]}  Qxe3+ {[%clk 0:00:26]} 73. Kf1 {[%clk 0:00:11]}  Qf3+ {[%clk 0:00:24]} 74. Ke1 {[%clk 0:00:10]}  Qxg3+ {[%clk 0:00:24]} 75. Kd1 {[%clk 0:00:11]}  Qf3+ {[%clk 0:00:24]} 76. Ke1 {[%clk 0:00:10]}  Qe4+ {[%clk 0:00:22]} 77. Kf1 {[%clk 0:00:09]}  Kxh4 {[%clk 0:00:22]} 78. Qd2 {[%clk 0:00:08]}  Qf3+ {[%clk 0:00:20]} 79. Kg1 {[%clk 0:00:08]}  Qg3+ {[%clk 0:00:20]} 80. Kf1 {[%clk 0:00:09]}  f4 {[%clk 0:00:20]} 81. Qd8+ {[%clk 0:00:09]}  g5 {[%clk 0:00:20]} 82. Qd7 {[%clk 0:00:09]}  Qf3+ {[%clk 0:00:20]} 83. Ke1 {[%clk 0:00:08]}  g4 {[%clk 0:00:20]} 84. Qc7 {[%clk 0:00:05]}  Kg3 {[%clk 0:00:16]} 85. Qc2 {[%clk 0:00:04]}  h4 {[%clk 0:00:15]} 86. Qc4 {[%clk 0:00:03]}  h3 {[%clk 0:00:13]} 87. Qc5 {[%clk 0:00:00]}  Qe3+ {[%clk 0:00:13]} 0-1


[Site "https://www.chess.com"]